Cogmind - Beta 13 *** ADVENTURER MODE // 2024.07.25 @ 09:00:22 Player: Jefffff Result: Destroyed by G-47 Trooper with Particle Gun Performance ------------- Evolutions (2) 1000 Regions Visited (7) 1400 Robots Destroyed (108) 540 Value Destroyed (4285) 4285 Prototype IDs (25) 500 Alien Tech Used (0) 0 Bonus (1646) 1646 TOTAL SCORE: 9371 Bonus ------- High Alert Combat Kills 586 Follower Combat Kills 165 Entered Garrisons 200 Used RIF Installer 500 Aligned with FarCom 300 Friendly Fire -105 Cogmind --------- Core Integrity 0/550 Matter 300/300 Energy 98/100 System Corruption 9% Temperature Cool (9) Movement Core (50) Location -8/Materials Parts ------- > --- POWER (1) -------- (None) > --- PROPULSION (4) --- (None) > --- UTILITY (2) ------ Improved Signal Interpreter > --- WEAPON (4) ------- (None) > --- INVENTORY (5) ---- Superbattery (1500) Improved Terrain Scanner Improved Terrain Scan Processor Hacking Suite Advanced EMP Blaster Peak State ------------ > --- POWER ------------ Light Angular Momentum Engine > --- PROPULSION ------- Light Treads Light Treads Field Propulsion Drive Field Propulsion Drive > --- UTILITY ---------- Advanced Cooling System High-capacity Storage Unit > --- WEAPON ----------- Heavy Phase Cannon Enhanced Autogun Magnetic Acceleration Cannon Remote Datajack > --- INVENTORY -------- Superbattery Improved Sensor Array Improved Signal Interpreter Improved Terrain Scanner Improved Terrain Scan Processor Target Analyzer Improved Transmission Jammer Hacking Suite Relay Coupler [NC] Relay Coupler [NC] Relay Coupler [Swarmer] Relay Coupler [Grunt] Relay Coupler [Sentry] Relay Coupler [Sentry] Relay Coupler [Sentry] Relay Coupler [Specialist] Relay Coupler [Hunter] Relay Coupler [Hunter] System Restoration Module Trap Reconfigurator [Rating: 53] Favorites ----------- Power Cooled Ion Engine Engine Cooled Ion Engine Propulsion Light Treads Treads Light Treads Leg Improved Aluminum Leg Wheel Compact Wheel Flight Unit Field Propulsion Drive Utility High-capacity Storage Unit Device Advanced Cooling System Storage High-capacity Storage Unit Processor Improved Signal Interpreter Hackware Relay Coupler [Hunter] Protection Improved Medium Armor Plating Weapon Enhanced Autogun Energy Gun EM Pulse Gun Energy Cannon Heavy Phase Cannon Ballistic Gun Enhanced Autogun Ballistic Cannon Magnetic Acceleration Cannon Special Weapon Remote Datajack Build | -11 -10 -10 -10 -9 -8 -8 -8 ------- Run | Yrd Mat Min Exi Min Mat Gar Mat Slots Evolved 4 | . . . . . 4 . . Power . | . . . . . . . . Propulsion 2 | . . . . . 2 . . Utility . | . . . . . . . . Weapon 2 | . . . . . 2 . . Parts Attached 91 | 2 18 . 5 . 23 38 5 Power 7 | . 2 . . . 2 3 . Engine 7 | . 2 . . . 2 3 . Core . | . . . . . . . . Reactor . | . . . . . . . . Propulsion 37 | 1 7 . . . 8 20 1 Treads 19 | . 4 . . . . 14 1 Leg 12 | . 2 . . . 8 2 . Wheel 2 | 1 1 . . . . . . Hover . | . . . . . . . . Flight 4 | . . . . . . 4 . Utility 16 | 1 3 . 5 . . 3 4 Device 9 | . 2 . 3 . . 2 2 Storage 4 | 1 1 . 2 . . . . Processor 1 | . . . . . . . 1 Hackware 1 | . . . . . . . 1 Protection 1 | . . . . . . 1 . Artifact . | . . . . . . . . Weapon 31 | . 6 . . . 13 12 . Energy Gun 1 | . 1 . . . . . . Energy Cannon 3 | . . . . . . 3 . Ballistic Gun 20 | . 3 . . . 13 4 . Ballistic Cannon 5 | . 2 . . . . 3 . Launcher . | . . . . . . . . Special Weapon 2 | . . . . . . 2 . Impact Weapon . | . . . . . . . . Slashing Weapon . | . . . . . . . . Piercing Weapon . | . . . . . . . . Special Melee Weapon . | . . . . . . . . Unidentified Prototypes 5 | . . . 3 . 2 . . Parts Lost 11 | . 2 . . . 1 2 6 Power . | . . . . . . . . Propulsion 8 | . 2 . . . 1 2 3 Utility 2 | . . . . . . . 2 Weapon 1 | . . . . . . . 1 Highest Loss Streak 3 | . 2 . . . 1 1 3 To Critical Strikes . | . . . . . . . . Average Slot Usage (%) 93 | . 91 100 100 100 99 96 52 Engine 9 | . 13 14 14 14 9 9 2 Treads 13 | . 13 . . . . 22 10 Leg 15 | . 8 28 28 28 35 8 . Flight 3 | . . . . . . 5 14 Device 9 | . 8 14 14 14 9 8 3 Storage 9 | . 14 14 14 14 9 9 2 Energy Gun 1 | . 9 . . . . . . Energy Cannon 3 | . . . . . . 6 . Ballistic Gun 16 | . 14 14 14 14 32 13 . Ballistic Cannon 7 | . 3 14 14 14 3 9 . Special Weapon 2 | . . . . . . 3 6 Naked Turns . | . . . . . . . . Heaviest Build 81 | 5 17 17 51 51 62 81 54 Greatest Support 80 | 16 40 26 26 26 56 80 40 Greatest Overweight (x) 5 | . 4 . 1 1 1 5 1 Average Overweight (x) . | . . . . 1 1 . . Largest Inventory Capacity 20 | 8 8 8 20 20 20 20 20 Average Capacity 17 | 7 8 8 12 20 20 20 9 Most Carried 20 | 7 8 8 9 12 20 20 20 Average Carried 15 | 5 6 8 8 10 18 19 8 Final Capacity 20 | 8 8 8 20 20 20 20 5 Final Carried 20 | 7 8 8 9 12 20 20 5 Class Distribution -------------------- 29% | Mutant 28% | Skirmisher 26% | Scavenger-Skirmisher 8% | Bothacker-Mutant 6% | Bothacker-Skirmisher Dominant Class ---------------- Mutant | -10/Materials Mutant | -10/Mines Mutant | -10/Exiles Mutant | -9/Mines Skirmisher | -8/Materials Scavenger-Skirmisher | -8/Garrison Mutant | -8/Materials Resources | -11 -10 -10 -10 -9 -8 -8 -8 ----------- Run | Yrd Mat Min Exi Min Mat Gar Mat Matter Collected 4048 | 220 294 42 100 14 1377 1950 51 Remotely . | . . . . . . . . Salvage Created 4009 | . 577 41 . 37 1677 1677 . Parts 226 | . 38 5 . 7 83 93 . Haulers Intercepted 6 | . 2 . . . 4 . . Recyclers Shooed 1 | . . . . . 1 . . Parts Field Recycled . | . . . . . . . . Retrieved Matter . | . . . . . . . . Parts Self-Destructed . | . . . . . . . . Prevented . | . . . . . . . . Kills | -11 -10 -10 -10 -9 -8 -8 -8 ------- Run | Yrd Mat Min Exi Min Mat Gar Mat Combat Hostiles Destroyed 84 | . 11 3 . 3 26 41 . Guns 58 | . 9 3 . 1 24 21 . Cannons 24 | . 1 . . 2 2 19 . AOE 1 | . 1 . . . . . . Classes Destroyed 14 | . 7 . . . 4 3 . Worker 2 | . 1 . . . 1 . . Builder 1 | . 1 . . . . . . Tunneler 2 | . 1 . . . 1 . . Hauler 6 | . 2 . . . 4 . . Recycler 4 | . . . . . 4 . . Operator 3 | . . . . . 3 . . Watcher 6 | . 3 . . . 3 . . Swarmer 32 | . 3 3 . 3 10 13 . Grunt 31 | . 8 . . . 12 11 . Brawler 1 | . . . . . . 1 . Sentry 15 | . . . . . 3 12 . Hunter 1 | . . . . . 1 . . Programmer 3 | . . . . . . 3 . Behemoth 1 | . . . . . . 1 . Best Kill Streak 7 | . 4 3 . 3 7 6 . Combat Bots Only 6 | . 3 3 . 3 4 6 . Max Kills in Single Turn 2 | . 2 1 . 2 2 2 . Gunslinging 1 | . . . . . 1 . . Exploded 1 | . 1 . . . . . . Melee . | . . . . . . . . Uniques/NPCs Destroyed . | . . . . . . . . Combat | -11 -10 -10 -10 -9 -8 -8 -8 -------- Run | Yrd Mat Min Exi Min Mat Gar Mat Hostile Shots Fired 441 | . 44 13 . 5 122 182 75 Missed 119 | . 7 3 . 1 28 48 32 Damage Taken 3382 | . 377 55 . 22 806 1519 603 Core 667 | . 90 16 . 7 95 247 212 Absorbed by Shields . | . . . . . . . . Ignored by Resistances 979 | . 115 20 . 8 245 425 166 Regen/Repaired (Parts) 53 | . . . . . 53 . . Core Remaining (%) 77 | 100 . . . 54 . . . Volleys Fired 290 | . 32 6 . 2 77 169 4 Largest 4 | . 2 2 . 2 4 4 1 Hottest 212 | . 60 55 . 55 100 212 5 Shots Fired 794 | . 64 12 . 4 306 404 4 Gun 538 | . 57 6 . 2 279 194 . Cannon 245 | . 7 6 . 2 27 203 . Launcher . | . . . . . . . . Special 11 | . . . . . . 7 4 Kinetic 658 | . 39 12 . 4 306 297 . Thermal 100 | . . . . . . 100 . Explosive . | . . . . . . . . Electromagnetic 25 | . 25 . . . . . . Robot Hit Streak 24 | . 10 2 . 1 16 24 22 Robot Miss Streak 5 | . 2 2 . 1 5 3 1 Penetration Max . | . . . . . . . . Secondary Targets 9 | . 3 . . . 6 . . Max Gunslinging Chain 2 | . 1 . . . 2 . . Shots Hit Robots 443 | . 47 4 . 2 194 193 3 Core Hits 183 | . 27 3 . 3 72 77 1 Critical Kills 3 | . . . . . 2 1 . Critical Parts Destroyed 6 | . . . . . 3 3 . Critical Strikes 13 | . 1 . . . 5 7 . Meltdown 1 | . . . . . . 1 . Destroy 8 | . . . . . 5 3 . Blast 4 | . 1 . . . . 3 . Melee Attacks . | . . . . . . . . Impact . | . . . . . . . . Slashing . | . . . . . . . . Piercing . | . . . . . . . . Sneak Attacks . | . . . . . . . . Combat Hostiles . | . . . . . . . . Follow-up Attacks . | . . . . . . . . Damage Inflicted 8117 | . 699 60 . 56 2923 4353 26 Guns 5239 | . 588 41 . 24 2655 1931 . Cannons 2824 | . 83 19 . 32 268 2422 . Explosions 28 | . 28 . . . . . . Melee . | . . . . . . . . Ramming 26 | . . . . . . . 26 Kinetic 6311 | . 345 60 . 56 2923 2927 . Thermal 1454 | . 28 . . . . 1426 . Explosive . | . . . . . . . . Electromagnetic 326 | . 326 . . . . . . Impact . | . . . . . . . . Slashing . | . . . . . . . . Piercing . | . . . . . . . . Highest Corruption 9 | . . . . . . . 9 Average Corruption 9 | . . . . . . . 9 Corruption Purged . | . . . . . . . . Corruption Blocked . | . . . . . . . . Effects 2 | . . . . . . . 2 Message Errors 1 | . . . . . . . 1 Energy Discharges 1 | . . . . . . . 1 Overload Shots . | . . . . . . . . Overflow Damage 78 | . 4 . . . . 74 . Projectiles 78 | . 4 . . . . 74 . Explosions . | . . . . . . . . Melee . | . . . . . . . . Knockbacks 15 | . 1 . . . 8 6 . Impact . | . . . . . . . . Kinetic 14 | . 1 . . . 7 6 . Secondary 1 | . . . . . 1 . . Self-Inflicted Damage 12 | . . . . . . . 12 Shots . | . . . . . . . . Rammed 4 | . . . . . . . 4 Targets Rammed 4 | . . . . . . . 4 Kicked . | . . . . . . . . Crushed . | . . . . . . . . Highest Temperature 527 | . 93 . . . 361 527 15 Average Temperature 94 | . 39 . . . 89 108 15 Received Heat Transfer 1311 | . 174 . . . 324 525 288 Effects 6 | . . . . . 2 4 . Interference 4 | . . . . . 1 3 . Matter Decay 1 | . . . . . 1 . . Damage (core) 1 | . . . . . . 1 . Siege Activations . | . . . . . . . . Robots Corrupted . | . . . . . . . . Combat Hostiles . | . . . . . . . . Parts Fried . | . . . . . . . . Impact Corruptions . | . . . . . . . . Robots Melted 1 | . . . . . . 1 . Combat Hostiles 1 | . . . . . . 1 . Parts Melted 3 | . . . . . . 3 . Heat Transferred 1567 | . 50 . . . . 1517 . Parts Sabotaged . | . . . . . . . . Parts Stolen . | . . . . . . . . Parts Stripped . | . . . . . . . . Power Chain Reactions 1 | . 1 . . . . . . Alert | -11 -10 -10 -10 -9 -8 -8 -8 ------- Run | Yrd Mat Min Exi Min Mat Gar Mat Peak Influence 3608 | . 168 96 . 70 341 3608 1515 Initial 1515 | . . 26 . . 22 79 1515 Average 1118 | . 95 41 . 50 134 1812 1328 Maximum Alert Level 5 | . . . . . 1 5 4 Low Security (%) 36 | 100 100 100 . 100 81 3 . Level 1 8 | . . . . . 18 8 . Level 2 5 | . . . . . . 11 . Level 3 6 | . . . . . . 11 1 Level 4 15 | . . . . . . 14 98 Level 5 27 | . . . . . . 50 . High Security . | . . . . . . . . Max Security . | . . . . . . . . Squads Dispatched 12 | . 3 . . . 5 . 4 Investigation 4 | . 3 . . . . . 1 Extermination . | . . . . . . . . Reinforcement 3 | . . . . . 2 . 1 Assault 2 | . . . . . . . 2 Garrison 3 | . . . . . 3 . . Intercept . | . . . . . . . . Searches Triggered . | . . . . . . . . Construction Impeded . | . . . . . . . . Haulers Reinforced . | . . . . . . . . Active Scanning Responses . | . . . . . . . . Cargo Convoy Interrupts . | . . . . . . . . Stealth | -11 -10 -10 -10 -9 -8 -8 -8 --------- Run | Yrd Mat Min Exi Min Mat Gar Mat Distress Signals 6 | . . . . . 4 . 2 Communications Jammed . | . . . . . . . . Distress Signals . | . . . . . . . . Times Spotted 131 | . 16 3 . 3 36 52 21 Peak Tracking Total 12 | . 3 3 . 3 5 4 12 Tactical Retreats 9 | . 1 . . . 1 4 3 Traps | -11 -10 -10 -10 -9 -8 -8 -8 ------- Run | Yrd Mat Min Exi Min Mat Gar Mat Traps Triggered 8 | . 5 . . . . 3 . Indirectly . | . . . . . . . . Trap Hack Attempts . | . . . . . . . . Triggered . | . . . . . . . . Disarmed . | . . . . . . . . Reprogrammed . | . . . . . . . . Reused . | . . . . . . . . Traps Reconfigurated 5 | . . . . . 4 1 . Traps Extracted . | . . . . . . . . Installed . | . . . . . . . . Triggered . | . . . . . . . . Machines | -11 -10 -10 -10 -9 -8 -8 -8 ---------- Run | Yrd Mat Min Exi Min Mat Gar Mat Machines Disabled 19 | . 1 . . . 2 16 . Max in Single Turn 2 | . 1 . . . 2 1 . Garrison Relay 6 | . . . . . . 6 . Machines Repaired . | . . . . . . . . Machines Dismantled . | . . . . . . . . Machines Sabotaged . | . . . . . . . . Overloaded Fab Kills . | . . . . . . . . Hacking | -11 -10 -10 -10 -9 -8 -8 -8 --------- Run | Yrd Mat Min Exi Min Mat Gar Mat Machines Accessed 20 | . 7 . 1 . 5 4 3 Terminals 17 | . 7 . . . 3 4 3 Fabricators . | . . . . . . . . Repair Stations 1 | . . . . . 1 . . Recycling Units . | . . . . . . . . Scanalyzers . | . . . . . . . . Garrison Access 1 | . . . . . 1 . . Total Hacks 47 | . 21 . 1 . 11 5 9 Successful 25 | . 9 . 1 . 8 2 5 Failed 22 | . 12 . . . 3 3 4 Catastrophic 5 | . 2 . . . . 2 1 Database Lockouts . | . . . . . . . . Manual 40 | . 21 . 1 . 6 3 9 Terminals 43 | . 21 . . . 8 5 9 Fabricators . | . . . . . . . . Repair Stations 2 | . . . . . 2 . . Recycling Units . | . . . . . . . . Scanalyzers . | . . . . . . . . Garrison Access 1 | . . . . . 1 . . Terminal Hacks 11 | . 4 . 1 . 2 2 2 Open Door 1 | . . . . . . 1 . Level Access Points 1 | . 1 . . . . . . Branch Access Points 2 | . 1 . . . . . 1 Emergency Access Points 1 | . . . . . . 1 . Terminal Index 2 | . 2 . . . . . . Unreport Threat 1 | . . . . . . . 1 Registered Components 1 | . . . . . 1 . . Zone Layout 1 | . . . . . 1 . . Derelict Proto ID Bank 1 | . . . 1 . . . . Fabricator Hacks . | . . . . . . . . Repair Station Hacks 2 | . . . . . 2 . . Scan Component 1 | . . . . . 1 . . Repair 1 | . . . . . 1 . . Recycling Unit Hacks . | . . . . . . . . Scanalyzer . | . . . . . . . . Garrison Access Hacks 1 | . . . . . 1 . . Unlock Access 1 | . . . . . 1 . . Unauthorized Hacks 11 | . 5 . . . 3 . 3 Terminals 11 | . 5 . . . 3 . 3 Botnet 11 | . 5 . . . 3 . 3 Fabricators . | . . . . . . . . Repair Stations . | . . . . . . . . Recycling Units . | . . . . . . . . Scanalyzers . | . . . . . . . . Garrison Access . | . . . . . . . . Data Cores Recovered 1 | . . . . . 1 . . Used . | . . . . . . . . Hacking Detections 16 | . 6 . . . 4 4 2 Full Trace Events 2 | . 1 . . . . . 1 Feedback Events . | . . . . . . . . Feedback Blocked . | . . . . . . . . Robot Schematics Acquired . | . . . . . . . . Robots Built . | . . . . . . . . Authchips . | . . . . . . . . Time . | . . . . . . . . Total Robot Build Rating . | . . . . . . . . Part Schematics Acquired . | . . . . . . . . Parts Built . | . . . . . . . . Authchips . | . . . . . . . . Time . | . . . . . . . . Total Part Build Rating . | . . . . . . . . Parts Repaired 1 | . . . . . 1 . . Time 38 | . . . . . 38 . . Parts Recycled . | . . . . . . . . Recycled Matter . | . . . . . . . . Retrieved Matter . | . . . . . . . . Retrieved Components . | . . . . . . . . Parts Scanalyzed . | . . . . . . . . Part Schematics Acquired . | . . . . . . . . Parts Damaged . | . . . . . . . . Bothacking | -11 -10 -10 -10 -9 -8 -8 -8 ------------ Run | Yrd Mat Min Exi Min Mat Gar Mat Used RIF Installer 1 | . . . . . . 1 . Robots Hacked 2 | . . . . . . . 2 Non-combat . | . . . . . . . . Combat 2 | . . . . . . . 2 Robot Hacks Applied 3 | . . . . . . . 3 parse_system 1 | . . . . . . . 1 overwrite_iff 1 | . . . . . . . 1 formatsys_high 1 | . . . . . . . 1 Relay Couplers Released 26 | . . . . . . 26 . Machine Destruction 26 | . . . . . . 26 . Attached 1 | . . . . . . . 1 Fabnet Peak Effective % . | . . . . . . . . Robots Rewired 3 | . . . . . . 3 . Allies Hacked . | . . . . . . . . Hacks Repelled . | . . . . . . . . Allies | -11 -10 -10 -10 -9 -8 -8 -8 -------- Run | Yrd Mat Min Exi Min Mat Gar Mat Total Allies 7 | . . . . . . 5 2 Largest Group 3 | . . . . . . 3 1 Highest-Rated Group 54 | . . . . . . 54 21 Highest-Rated Ally 31 | . . . . . . 31 21 Total Orders 1 | . . . . . . . 1 AID 1 | . . . . . . . 1 Ally Attacks 41 | . . . . . . 34 7 Total Damage 827 | . . . . . . 684 143 Kills 7 | . . . . . . 7 . Allies Corrupted . | . . . . . . . . Allies Melted . | . . . . . . . . Intel | -11 -10 -10 -10 -9 -8 -8 -8 ------- Run | Yrd Mat Min Exi Min Mat Gar Mat Robot Analysis Total . | . . . . . . . . Derelict Logs Recovered . | . . . . . . . . Drone Launches . | . . . . . . . . Drone Recoveries . | . . . . . . . . Exploration | -11 -10 -10 -10 -9 -8 -8 -8 ------------- Run | Yrd Mat Min Exi Min Mat Gar Mat Turns Passed 9105 | 52 1114 163 663 274 1652 4548 639 Spaces Moved 4433 | 49 635 119 461 140 674 1994 361 Core 88 | 18 13 . . . . . 57 Treads 2127 | . 299 . . . . 1613 215 Legs 1951 | . 240 119 461 140 674 317 . Wheels 114 | 31 83 . . . . . . Hover . | . . . . . . . . Flight 153 | . . . . . . 64 89 Fastest Speed 42 | 50 100 120 120 190 190 160 42 Average Speed 172 | 81 138 120 141 190 191 196 130 Slowest Speed 442 | 100 250 120 190 190 193 442 240 Overloaded Moves . | . . . . . . . . Propulsion Burnouts . | . . . . . . . . Robots Hopped 6 | . . . . . . . 6 Cave-ins Triggered . | . . . . . . . . Exploration Rate (%) 49 | 3 76 39 68 43 51 99 19 Regions Visited 7 Branch Regions 3 Pre-discovered Areas . | . . . . . . . . Known Exits Taken 2 | . 1 . . . 1 . . Unknown Exits Taken 4 | 1 . 1 1 1 . . . Scrap Searched 2 | . . 1 . 1 . . . Spaces Dug 3 | . . . . . . 3 . Terrain Destroyed 11 | . 2 . . . . 9 . Melee . | . . . . . . . . Projectile 9 | . . . . . . 9 . AOE 2 | . 2 . . . . . . Terrain Rammed . | . . . . . . . . Walls Destroyed . | . . . . . . . . Machines Disabled . | . . . . . . . . Actions | -11 -10 -10 -10 -9 -8 -8 -8 --------- Run | Yrd Mat Min Exi Min Mat Gar Mat Total 5500 | 60 813 127 473 144 923 2437 523 Wait 445 | 3 77 3 . . 92 129 141 Move 4417 | 48 634 118 460 139 674 1993 351 Hop 4 | . . . . . . . 4 Pick Up 106 | 7 25 . 2 3 26 40 3 Fast Attach 32 | 2 5 . 3 . 8 13 1 Attach 15 | . 6 . 1 . 4 3 1 Detach 1 | . . . 1 . . . . Swap 44 | . 7 . 1 . 11 22 3 Drop 138 | . 27 . 5 . 31 64 11 Fire 290 | . 32 6 . 2 77 169 4 Melee . | . . . . . . . . Ram 3 | . . . . . . . 3 Kick . | . . . . . . . . Crush 1 | . . . . . . . 1 Escape Stasis 4 | . . . . . . 4 . Rewire . | . . . . . . . . Trap . | . . . . . . . . Miscellaneous . | . . . . . . . . Route ------- -11/Scrapyard -10/Materials (discovered 4 exits: *Mat x3 / *Min) -10/Mines (discovered 2 exits: *Mat / *Exi) -10/Exiles -9/Mines -8/Materials (discovered 2 exits: [*Fac] / Gar) -8/Garrison (discovered 4 exits: *Mat x4) -8/Materials History --------- Turn | Location | Event 9 | -11/Scrapyard | Discovered new exit (range 16) 53 | -11/Scrapyard | Entered Materials 317 | -10/Materials | Build established: Mutant 532 | -10/Materials | Discovered new exit (range 9) 607 | -10/Materials | Discovered new exit (range 9) 891 | -10/Materials | Identified exit to Mines 910 | -10/Materials | Identified exit to Materials 1167 | -10/Materials | Entered Mines 1197 | -10/Mines | Discovered exit to Materials (range 8) 1325 | -10/Mines | Deemed a non-threat by the Exiles lab entrance 1325 | -10/Mines | Discovered new exit (range 5) 1330 | -10/Mines | Entered Exiles 1360 | -10/Exiles | Met 8R-AWN 1381 | -10/Exiles | Met EX-HEX 1420 | -10/Exiles | Met EX-BIN 1437 | -10/Exiles | Aligned with FarCom system 1438 | -10/Exiles | Given EX-Vault access code 1528 | -10/Exiles | Opened EX-Vault 1534 | -10/Exiles | Found Prototype Storage 1534 | -10/Exiles | Identified Superbattery 1538 | -10/Exiles | Found Prototype Device 1538 | -10/Exiles | Identified Trap Reconfigurator 1544 | -10/Exiles | Found Prototype Device 1544 | -10/Exiles | Identified Supersonic Drone Bay 1590 | -10/Exiles | Warned to stay clear of 0b10 Research branches 1631 | -10/Exiles | Met EX-DEC 1969 | -10/Exiles | Discovered new exit (range 14) 1993 | -10/Exiles | Stole two prototypes: Trap Reconfigurator, Superbattery 1993 | -10/Exiles | Entered Mines 2257 | -9/Mines | Discovered new exit (range 6) 2267 | -9/Mines | Entered Materials 2267 | -8/Materials | Evolved 4 slots: Propulsion x2, Weapon x2 2567 | -8/Materials | Build established: Skirmisher 3471 | -8/Materials | Garrison activated, responded to threat 3782 | -8/Materials | Discovered new exit (range 14) 3853 | -8/Materials | Repaired Titanium Leg 3919 | -8/Materials | Identified exit to Garrison 3919 | -8/Materials | Entered Garrison 3985 | -8/Garrison | Triggered checkpoint 4036 | -8/Garrison | Garrison Relay disabled 4238 | -8/Garrison | Garrison Relay disabled 4471 | -8/Garrison | Triggered checkpoint 4492 | -8/Garrison | Triggered checkpoint 4671 | -8/Garrison | Spotted B-75 Beast 4721 | -8/Garrison | Core integrity fell below 50% 4725 | -8/Garrison | Destroyed B-75 Beast 5151 | -8/Garrison | Triggered checkpoint 5328 | -8/Garrison | Rescued a captive Derelict 5329 | -8/Garrison | Rescued a captive Derelict 5357 | -8/Garrison | Discovered new exit (range 10) 5383 | -8/Garrison | Build established: Scavenger-Skirmisher 5485 | -8/Garrison | Triggered checkpoint 5519 | -8/Garrison | Garrison Relay disabled 5738 | -8/Garrison | Triggered checkpoint 5794 | -8/Garrison | Triggered checkpoint 5827 | -8/Garrison | Garrison Relay disabled 6159 | -8/Garrison | Triggered checkpoint 6190 | -8/Garrison | Garrison Relay disabled 6381 | -8/Garrison | Discovered new exit (range 8) 6408 | -8/Garrison | Triggered checkpoint 6430 | -8/Garrison | Discovered new exit (range 3) 6509 | -8/Garrison | Triggered checkpoint 6662 | -8/Garrison | Triggered checkpoint 6697 | -8/Garrison | Garrison Relay disabled 6814 | -8/Garrison | Discovered new exit (range 9) 6831 | -8/Garrison | Installed Relay Interface Framework 7570 | -8/Garrison | Build established: Bothacker-Skirmisher 8163 | -8/Garrison | Build established: Bothacker-Mutant 8467 | -8/Garrison | Entered Materials 8467 | -8/Materials | Accompanied by 1 ally 8867 | -8/Materials | First assault squad dispatched 8963 | -8/Materials | Build established: Mutant 9001 | -8/Materials | Core integrity fell below 20% 9030 | -8/Materials | Lost 3 parts (2n1u) 9106 | -8/Materials | Destroyed by G-47 Trooper with Particle Gun Last Messages --------------- 08996_ K-01 Serf cleans the Terminal. [Achievement: Cya!] 08999_ Field Propulsion Drive destroyed. 08999_ Relay Coupler [Hunter] destroyed. 08999_ System corrupted by crushing effect (+4). 08999_ System corrupted by crushing effect (+3). 08999_ Knocked back. 08999_ Slammed into B-36 Bruiser. 08999_ Field Propulsion Drive destroyed. 08999_ System corrupted by crushing effect (+2). 09006_ System corrupted: Energy discharge (-27). 09028_ Critical hit (Burn: +37). 09053_ Imp. Sensor Array destroyed. 09069_ Critical hit (Burn: +37). 09073_ Acquired Prototype Launcher. 09075_ Adv. Treads destroyed. 09094_ N=DTB8J&WJADRRZVOB&VL 09098_ Slammed into G-47 Trooper. 09099_ Slammed into A-02 Transporter. 09102_ Slammed into U-05 Engineer. Map ----- +----------------------------------------------------+ | | | | | | | | | | | ????????????????????????????????????????? | | ????????????????????????????????????????? | | ????????????????????????????????????????? | | ????????????????????????????????????????? | | ????????????????????????????????????????? | | ??????????????????????########??????????? | | ??????????????????????# #??????????? | | ??????????????????????# #??????????? | | ??????????????????????# !!#??????????? | | ??????????????????????# ############ | | ??????????????????????# + | | ??????????????????????# # ########## | | ??????????????????????###+#### #?######## | | ??????????????????????# # #?# | | ??????????????????????# # ### """ | | ??????????????????????# ]# + """"" | | ??????????????????????# # ### """"" | | ??????????????????????# "T" + #?# """"" | | ??????????????????????# # #?# """ | | ?????????#####################%#?#! | | ?????????# @ % g u #?# | | ?????????# !! ##############w#?#! | | ?????????# ! ???# ## #?######## | | ?????????# ]????#""" ## #????????? | | ?????????# ????#""" ## ########## | | ?????????#! ?????#""" # | | ?????????####+?????# + | | ???????????? ??????# # | | ??????????? ??????# # #######/# | | ??????????? ???????# [ "T" # ## | | ?????????? ???????# # ## """ ! | | ?????????? ????????########## ## """ | | ????????? ?????????????????# %/ """ | | ?????????#??????????????????# ## | | ????????????????????????????# ## | | ????????????????????????######/########## | | ????????????????????????# ! #?????? | | ????????????????????????# #?????? | | ????????????????????????# #?????? | | ????????????????????????# #?????? | | ????????????????????????# """ #?????? | | ????????????????????????# """ "T" #?????? | | ????????????????????????# """ """ #?????? | | ????????????????????????# #?????? | | ????????????????????????###########?????? | +----------------------------------------------------+ Best States ------------- Heat Dissipation 62 Energy Generation 18 Energy Capacity 290 Matter Stores 300 Matter Capacity 300 Sight Range 16 Robot Scan Range 15 Terrain Scan Density 10 Jamming Range 14 Armor Coverage 225 Resistance: KI 20 Resistance: TH 20 Resistance: EX 20 Resistance: EM 20 Resistance: I 20 Resistance: S 20 Resistance: P 20 Evasion (%) 57 Recoil Reduction 4 Offensive Hacking 10 Relay Coupler Types 1 Relay Coupler Value 9 Item Schematics ----------------- None Robot Schematics ------------------ None Fabricated ------------ Nothing Alien Tech Used ----------------- None Achievements -------------- Assimilation Complete Cya! Challenges ------------ None Game ------ Seed HypervelocityScanThruster Manual? 0 Play Time 01:09:03 Cumulative 79.9 hours Start 2024.07.25 @ 07:31:26 End 2024.07.25 @ 09:00:22 Sessions 1 Manual Loads 0 Difficulty Adventurer Special Mode None Game No. 115 Rogue 0 Adventurer 115 Explorer 0 Win Type - Total 0 Types 0/0/0/0/0/0/0/0/0 Lore% 44 Gallery% 45 Achievement% 33 Wizard Run 0 Options --------- Layout 2 ASCII 0 Keyboard 0 Movement Mouse Keybinds 0 Fullscreen 2 Font 48/Smallcaps Map View 50x44 Zoom Use 0% Tactical HUD 1 Map Filters NONE Filters NONE Steam 1 RUN: db68548a-b435-4503-8956-3f244c264f9a